Cogmind - Beta 16.1 @@@ ROGUE MODE // 2026.03.16 @ 22:18:31 Player: Satori Result: Destroyed by ZP-LS5(R) with Subdweller Laser Performance ------------- Evolutions (0) 0 Regions Visited (2) 400 Robots Destroyed (27) 135 Value Destroyed (594) 594 Prototype IDs (2) 40 Alien Tech Used (0) 0 Bonus (0) 0 TOTAL SCORE: 1169 Bonus ------- None Cogmind --------- Core Integrity 0/250 Matter 270/300 Energy 198/200 System Corruption 0% Temperature Cool (6) Movement Rolling (105) Location -10/Subcaves Parts ------- > --- POWER (1) -------- Subdweller Power Source > --- PROPULSION (2) --- Compact Wheel Subdweller Monowheel > --- UTILITY (2) ------ Large Storage Unit Subdweller Optics > --- WEAPON (2) ------- Subdweller Machine Gun Maul > --- INVENTORY (15) --- Subdweller Monowheel Medium Battery (150) Improved Terrain Scanner Assault Rifle Assault Rifle Assault Rifle Battle Rifle Battle Rifle Subdweller Machine Gun Subdweller Machine Gun Peak State ------------ > --- POWER ------------ Subdweller Power Source > --- PROPULSION ------- Light Treads Subdweller Monowheel > --- UTILITY ---------- Large Storage Unit Light Armor Plating > --- WEAPON ----------- Subdweller Machine Gun Makeshift Shrapnel Gun > --- INVENTORY -------- Compact Wheel Medium Battery Improved Terrain Scanner Seismic Detector Light Armor Plating Light Armor Plating Assault Rifle Assault Rifle Assault Rifle Battle Rifle Maul [Rating: 14] Favorites ----------- Power Subdweller Power Source Engine Subdweller Power Source Propulsion Compact Wheel Treads Light Treads Wheel Compact Wheel Utility Large Storage Unit Device Seismic Detector Storage Large Storage Unit Protection Light Armor Plating Weapon Assault Rifle Energy Gun Subdweller Laser Ballistic Gun Assault Rifle Impact Weapon Maul Build | -11 -10 -10 ------- Run | Yrd Mat Sub Slots Evolved . | . . . Power . | . . . Propulsion . | . . . Utility . | . . . Weapon . | . . . Parts Attached 26 | 7 5 14 Power 3 | 1 1 1 Engine 3 | 1 1 1 Core . | . . . Reactor . | . . . Propulsion 7 | 2 . 5 Treads 2 | 1 . 1 Leg . | . . . Wheel 5 | 1 . 4 Hover . | . . . Flight . | . . . Utility 10 | 2 4 4 Device 3 | 1 . 2 Storage 3 | 1 1 1 Processor . | . . . Hackware . | . . . Protection 4 | . 3 1 Artifact . | . . . Weapon 6 | 2 . 4 Energy Gun 1 | . . 1 Energy Cannon . | . . . Ballistic Gun 4 | 2 . 2 Ballistic Cannon . | . . . Launcher . | . . . Special Weapon . | . . . Impact Weapon 1 | . . 1 Slashing Weapon . | . . . Piercing Weapon . | . . . Special Melee Weapon . | . . . Unidentified Prototypes . | . . . Parts Lost 13 | . 2 11 Power 2 | . 1 1 Propulsion 4 | . . 4 Utility 5 | . 1 4 Weapon 2 | . . 2 Highest Loss Streak 4 | . 1 4 To Critical Strikes . | . . . Average Backups 9 | 2 8 10 Power . | . . . Propulsion 1 | 1 1 1 Utility 3 | . 5 3 Weapon 4 | . 1 5 Tool/Special . | . . . Unused Backups 8 | . 3 5 Power 1 | . 1 . Propulsion 1 | . 1 . Utility . | . . . Weapon 6 | . 1 5 Tool/Special . | . . . Average Slot Usage (%) 97 | . 99 96 Engine 13 | . 13 13 Treads 9 | . 14 7 Wheel 17 | . 14 18 Device 10 | . 9 10 Storage 14 | . 14 14 Protection 3 | . 4 2 Ballistic Gun 21 | . 28 18 Impact Weapon 5 | . . 8 Peak Build Rating 14 | 7 8 14 Average Rating 10 | 5 7 12 On Entrance 5 | . 7 8 Avg Prop Armor Cover (%) 10 | 14 11 10 Naked Turns . | . . . Heaviest Build 34 | 13 30 34 Greatest Support 36 | 20 16 36 Greatest Overweight (x) 2 | . 1 2 Average Overweight (x) 1 | . . 1 Largest Inventory Capacity 15 | 8 15 15 Average Capacity 14 | 7 13 15 Most Carried 14 | 5 10 14 Average Carried 9 | 3 8 10 Final Capacity 15 | 8 15 15 Final Carried 10 | 5 9 10 Class Distribution -------------------- 100% | Mutant Dominant Class ---------------- Mutant | -10/Materials Mutant | -10/Subcaves Resources | -11 -10 -10 ----------- Run | Yrd Mat Sub Matter Collected 835 | 253 212 370 Remotely . | . . . Salvage Created 600 | 35 228 337 Parts 44 | 6 19 19 Haulers Intercepted . | . . . Recyclers Shooed . | . . . Parts Field Recycled . | . . . Retrieved Matter . | . . . Parts Self-Destructed 9 | . . 9 Prevented . | . . . Parts Restored . | . . . Kills | -11 -10 -10 ------- Run | Yrd Mat Sub Combat Hostiles Destroyed 23 | . 11 12 Melee 2 | . . 2 Guns 17 | . 11 6 Classes Destroyed 5 | 1 3 1 Tunneler 2 | 2 . . Watcher 2 | . 2 . Swarmer 12 | . 9 3 Grunt 2 | . 2 . Subdweller 9 | . . 9 Best Kill Streak 3 | 2 3 3 Combat Bots Only 3 | . 3 3 Max Kills in Single Turn 2 | 1 2 1 Gunslinging 1 | . 1 . Exploded . | . . . Melee 1 | . . 1 Uniques/NPCs Destroyed . | . . . Combat | -11 -10 -10 -------- Run | Yrd Mat Sub Hostile Shots Fired 157 | . 69 88 Missed 39 | . 15 24 Hits 118 | . 54 64 Projectile 118 | . 54 64 Critical Strikes 4 | . 3 1 Damage Taken 1702 | . 464 1238 Core 253 | . 25 228 Absorbed by Shields . | . . . Core Remaining (%) 100 | 100 . . Volleys Fired 50 | 2 30 18 Largest 2 | 2 2 2 Hottest 84 | 40 40 84 Shots Fired 100 | 4 60 36 Gun 100 | 4 60 36 Cannon . | . . . Launcher . | . . . Special . | . . . Kinetic 95 | 4 60 31 Thermal 5 | . . 5 Explosive . | . . . Electromagnetic . | . . . Robot Hit Streak 20 | 3 7 20 Robot Miss Streak 3 | . 3 3 Penetration Max . | . . . Secondary Targets 2 | . 1 1 Max Gunslinging Chain 1 | . 1 1 Shots Hit Robots 81 | 3 33 45 Core Hits 30 | 2 14 14 Critical Kills 1 | . . 1 Critical Parts Destroyed 5 | . . 5 Critical Strikes 7 | . . 7 Destroy 2 | . . 2 Smash 5 | . . 5 Melee Attacks 40 | . . 40 Impact 40 | . . 40 Slashing . | . . . Piercing . | . . . Sneak Attacks . | . . . Combat Hostiles . | . . . Follow-up Attacks . | . . . Damage Inflicted 1650 | 36 414 1200 Guns 975 | 36 414 525 Cannons . | . . . Explosions . | . . . Melee 675 | . . 675 Ramming . | . . . Kinetic 894 | 36 414 444 Thermal 81 | . . 81 Explosive . | . . . Electromagnetic . | . . . Impact 675 | . . 675 Slashing . | . . . Piercing . | . . . Highest Corruption . | . . . Average Corruption . | . . . Corruption Purged . | . . . Corruption Blocked . | . . . Overload Shots . | . . . Overflow Damage 253 | . . 253 Projectiles . | . . . Explosions . | . . . Melee 253 | . . 253 Knockbacks 4 | . . 4 Impact 4 | . . 4 Kinetic . | . . . Secondary . | . . . Self-Inflicted Damage . | . . . Shots . | . . . Rammed . | . . . Targets Rammed . | . . . Kicked . | . . . Crushed . | . . . Highest Temperature 2 | . 2 . Average Temperature 2 | . 2 . Received Heat Transfer 252 | . 54 198 Siege Activations . | . . . Martial Activations . | . . . Shielding Activations . | . . . Robots Disrupted . | . . . Combat Hostiles . | . . . Robots Corrupted 4 | . . 4 Combat Hostiles 4 | . . 4 Parts Fried 4 | . . 4 Impact Corruptions 7 | . . 7 Robots Melted . | . . . Combat Hostiles . | . . . Parts Melted . | . . . Heat Transferred 100 | . . 100 Parts Sabotaged . | . . . Parts Stolen . | . . . Parts Stripped . | . . . Power Chain Reactions . | . . . Alert | -11 -10 -10 ------- Run | Yrd Mat Sub Maximum Alert Level . | . . . Low Security (%) 100 | 100 100 . Level 1 . | . . . Level 2 . | . . . Level 3 . | . . . Level 4 . | . . . Level 5 . | . . . High Security . | . . . Max Security . | . . . Peak Influence 111 | 10 111 . Initial . | . . . Average 38 | 1 41 . Influence Increases 511 | 10 321 180 Destroy 0b10 Robot/C 280 | . 220 60 Destroy 0b10 Robot/NC 20 | 10 10 . Destroy Leader 44 | . 44 . Successful Hack 30 | . 30 . Destroy Structure 2 | . 2 . Lose Combat Pursuer 135 | . 15 120 Influence Decreases 511 | 10 234 267 Entered New Map 43 | . . 43 Time Decay 418 | 10 214 194 Lost Part 50 | . 20 30 Squads Dispatched 1 | . 1 . Investigation 1 | . 1 . Extermination . | . . . Reinforcement . | . . . Assault . | . . . Garrison . | . . . Intercept . | . . . Searches Triggered . | . . . Construction Impeded . | . . . Haulers Reinforced . | . . . Active Scanning Responses . | . . . Cargo Convoy Interrupts . | . . . Stealth | -11 -10 -10 --------- Run | Yrd Mat Sub Distress Signals 1 | . 1 . Communications Jammed . | . . . Distress Signals . | . . . Times Spotted 29 | . 14 15 Peak Tracking Total 8 | . 3 8 Tactical Retreats 3 | . 1 2 Traps | -11 -10 -10 ------- Run | Yrd Mat Sub Traps Triggered 1 | . 1 . Indirectly . | . . . Trap Hack Attempts . | . . . Triggered . | . . . Disarmed . | . . . Reprogrammed . | . . . Reused . | . . . Traps Extracted . | . . . Installed . | . . . Triggered . | . . . Machines | -11 -10 -10 ---------- Run | Yrd Mat Sub Machines Disabled . | . . . Max in Single Turn . | . . . Machines Repaired . | . . . Machines Dismantled . | . . . Machines Sabotaged . | . . . Overloaded Fab Kills . | . . . Hacking | -11 -10 -10 --------- Run | Yrd Mat Sub Machines Accessed 8 | . 8 . Terminals 8 | . 8 . Fabricators . | . . . Repair Stations . | . . . Recycling Units . | . . . Scanalyzers . | . . . Garrison Access . | . . . Total Hacks 28 | . 28 . Successful 15 | . 15 . Failed 13 | . 13 . Catastrophic 1 | . 1 . Database Lockouts . | . . . Manual 25 | . 25 . Terminals 28 | . 28 . Fabricators . | . . . Repair Stations . | . . . Recycling Units . | . . . Scanalyzers . | . . . Garrison Access . | . . . Terminal Hacks 8 | . 8 . Part Schematic 1 | . 1 . Robot Analysis 2 | . 2 . Prototype ID Bank 1 | . 1 . Branch Access Points 1 | . 1 . Hauler Manifests 1 | . 1 . Zone Layout 2 | . 2 . Fabricator Hacks . | . . . Repair Station Hacks . | . . . Recycling Unit Hacks . | . . . Scanalyzer . | . . . Garrison Access Hacks . | . . . Unauthorized Hacks 7 | . 7 . Terminals 7 | . 7 . Botnet 2 | . 2 . Skim 5 | . 5 . Fabricators . | . . . Repair Stations . | . . . Recycling Units . | . . . Scanalyzers . | . . . Garrison Access . | . . . Data Cores Recovered . | . . . Used . | . . . Hacking Detections 6 | . 6 . Full Trace Events . | . . . Feedback Events . | . . . Feedback Blocked . | . . . Robot Schematics Acquired . | . . . Robots Built . | . . . Authchips . | . . . Time . | . . . Total Robot Build Rating . | . . . Part Schematics Acquired 1 | . 1 . Parts Built . | . . . Authchips . | . . . Time . | . . . Total Part Build Rating . | . . . Part Studies Acquired . | . . . Parts Repaired . | . . . Time . | . . . Parts Recycled . | . . . Recycled Matter . | . . . Retrieved Matter . | . . . Retrieved Components . | . . . Parts Scanalyzed . | . . . Part Schematics Acquired . | . . . Parts Damaged . | . . . Bothacking | -11 -10 -10 ------------ Run | Yrd Mat Sub Used RIF Installer . | . . . Robots Hacked . | . . . Non-combat . | . . . Combat . | . . . Robot Hacks Applied . | . . . Relay Couplers Released . | . . . Fabnet Peak Effective % . | . . . Robots Rewired . | . . . Allies Hacked . | . . . Hacks Repelled . | . . . Allies | -11 -10 -10 -------- Run | Yrd Mat Sub Total Allies . | . . . Largest Group . | . . . Highest-Rated Group . | . . . Highest-Rated Ally . | . . . Total Orders . | . . . Ally Attacks . | . . . Total Damage . | . . . Kills . | . . . Allies Corrupted . | . . . Allies Melted . | . . . Intel | -11 -10 -10 ------- Run | Yrd Mat Sub Active Infowar (turns) 1453 | 6 504 943 Optics 297 | . . 297 Terrain 169 | . . 169 Seismic 987 | 6 504 477 Robot Analysis Total 2 | . 2 . Derelict Logs Recovered 3 | . . 3 Drone Launches . | . . . Drone Recoveries . | . . . Exploration | -11 -10 -10 ------------- Run | Yrd Mat Sub Turns Passed 2170 | 63 739 1368 Spaces Moved 1498 | 42 555 901 Core 1 | 1 . . Treads 3 | 1 . 2 Legs . | . . . Wheels 1494 | 40 555 899 Hover . | . . . Flight . | . . . Fastest Speed 50 | 50 100 105 Average Speed 116 | 100 110 121 Slowest Speed 240 | 160 115 240 Overloaded Moves . | . . . Propulsion Burnouts . | . . . Robots Hopped . | . . . Potential Cave-ins . | . . . Cave-ins Triggered . | . . . Exploration Rate (%) 42 | 4 75 48 Regions Visited 2 Branch Regions 1 Pre-discovered Areas 1 | . . 1 Known Exits Taken . | . . . Unknown Exits Taken 2 | 1 1 . Scrap Searched 3 | . . 3 Spaces Dug 2 | . . 2 Terrain Destroyed 2 | . . 2 Melee 2 | . . 2 Projectile . | . . . AOE . | . . . Terrain Rammed . | . . . Walls Destroyed . | . . . Machines Disabled . | . . . Actions | -11 -10 -10 --------- Run | Yrd Mat Sub Total 1727 | 55 620 1052 Wait 70 | . 14 56 Move 1496 | 41 554 901 Hop . | . . . Pick Up 25 | 5 8 12 Fast Attach 9 | 7 1 1 Attach 11 | . 1 10 Detach . | . . . Swap 21 | . 8 13 Drop 5 | . 4 1 Fire 50 | 2 30 18 Melee 40 | . . 40 Ram . | . . . Kick . | . . . Crush . | . . . Escape Stasis . | . . . Rewire . | . . . Trap . | . . . Miscellaneous . | . . . Route ------- -11/Scrapyard -10/Materials (discovered 6 exits: *Mat x3 / *Min x2 / [*Sub]) -10/Subcaves (discovered 2 exits: [*Mat x2]) History --------- Turn | Location | Event 14 | -11/Scrapyard | Discovered new exit (range 15) 64 | -11/Scrapyard | Entered Materials 64 | -10/Materials | Discovered new exit (range 15) 135 | -10/Materials | Discovered new exit (range 9) 316 | -10/Materials | Build established: Mutant 499 | -10/Materials | Discovered new exit (range 7) 617 | -10/Materials | Identified exit to Mines 654 | -10/Materials | Discovered new exit (range 16) 670 | -10/Materials | Loaded intel: 3 trap records 698 | -10/Materials | Identified exit to Materials 716 | -10/Materials | Learned 2 Materials zone layouts 726 | -10/Materials | Learned 2 Storage zone layouts 727 | -10/Materials | Learned 2 Mines zone layouts 749 | -10/Materials | Learned location of 1 exit from Storage 792 | -10/Materials | Discovered new exit (range 9) 803 | -10/Materials | Entered Subcaves 804 | -10/Subcaves | Approached by a straggling Scientist 806 | -10/Subcaves | Shifting Twisted Machinery released Sub. Power Source 827 | -10/Subcaves | Learned Materials stockpile data 876 | -10/Subcaves | Discovered new exit (range 16) 925 | -10/Subcaves | Disturbed a concealed Subdweller 1034 | -10/Subcaves | Core integrity fell below 50% 1077 | -10/Subcaves | Lost 4 parts (1p2n1w) 1187 | -10/Subcaves | Discovered new exit (range 16) 1324 | -10/Subcaves | Shifting Twisted Machinery released Sub. Monowheel 1340 | -10/Subcaves | Learned location of 1 exit from Materials 1532 | -10/Subcaves | Lost 3 parts (1n2u) 1562 | -10/Subcaves | A Subdweller sparked back to life 1562 | -10/Subcaves | A Subdweller sparked back to life 1562 | -10/Subcaves | A Subdweller sparked back to life 1588 | -10/Subcaves | Core integrity fell below 20% 1620 | -10/Subcaves | Lost 4 parts (1n2u1w) 1859 | -10/Subcaves | Learned location of Zion (-6) 1936 | -10/Subcaves | A swath of the cavern ceiling suddenly collapsed 2171 | -10/Subcaves | Destroyed by ZP-LS5(R) with Subdweller Laser Last Messages --------------- 01762_ Acquired Sub. Monowheel. 01763_ K9-LBS(u) tweaks Twisted Machinery. 01765_ Acquired Sub. Optics. 01766_ K9-LBS(u) tweaks Twisted Machinery. 01767_ Acquired Sub. Machine Gun. 01769_ Acquired Battle Rifle. 01782_ K9-LBS(u) tweaks Twisted Machinery. 01788_ K9-LBS(u) builds Twisted Machinery. 01822_ K9-LBS(u) tweaks Twisted Machinery. 01855_ 5R-5GP(u) tweaks Twisted Machinery. 01858_ Sub. Monowheel shoots sparks and powers down. 01859_ Acquired derelict log, extracted data. World map updated: -6/Zion. 01881_ 5R-5GP(u) tweaks Twisted Machinery. 01888_ 5R-5GP(u) builds Twisted Machinery. 01896_ 5R-5GP(u) tweaks Twisted Machinery. A swath of the cavern ceiling suddenly collapses. 02067_ Sub. Optics shoots sparks and powers down. 02103_ 5R-5GP(u) tweaks Twisted Machinery. 02114_ 5R-5GP(u) builds Twisted Machinery. Map ----- +----------------------------------------------------+ | ?????????????????????## ## # ##?????????????? | | ????????#????????????# #" # ##????????????? | | ?#??????????#????????# #????????????? | | ??????#??????????????# #????????????? | | ???????????????????"?# #"" ### #????????????? | | ??????##?????????????#####" ### ##????????????? | | ?????? ?????????????????# ### ##?????????????? | | ??????? ##???????????????## ## #??????????????? | | ??#???? #????#???????????# # #??????????????? | | ? #????# ###????????????#?## ##??#???????????? | | # #????# #???#???????????## #####???????????? | | # ##???# ####????????????# #???????????? | | # ##### ##???????##### ##???#???????? | | # % #??????## " #????????????? | | #### #####??#" " ### #????????????? | | #???### " ##?# #????????????? | | ##????# R##?#### "###????????????? | | " ## ### ####???# "#???# "" #???#?????#???? | | %& #####?## ## ###?## ##???# "##?????????????? | | & ##??#?## #### ####### ##?????????????? | | ##????#### ## # #???#????#????? | | # ##??????### ## ##?????????????? | | #????????# ### #### #?????????????? | | ??####?## #?# #?????#?#?????# | | ## % ??????### " ##?## #?????????????? | | #?# ???????#####@###?## ##????????????? | | ##?# %## ##?#???### # ##### %#????????????? | | ## ####??#??????## """#"" *##???#????????? | | #?????????????# "" "" #?????????????? | | #?????????????# # " ##???????????#? | | ### ##???#??????#?# ##"" # #?????????????? | | #??? #?????????????# ?####### #?????????????? | | #???? #????????????# ??????# #?????????????? | | #?????#??????????? ???#??## ##???#???#?????? | | ????????????????# ???#??#""#??????????????? | | ????????????????# ??#???#"""#?????????????? | | #???? ??#???????# ? ???? """#?????????????? | | ? ??????????????# % ##? ???? """"?????????????? | | ??????????????? #?? ??? ###" ""????????????? | | ?????????????? ??? ? ##??#" "#???????????? | | ???????#????? ???? ? ?????## #????????????? | | ???????????? ???? ??#????###?#??????????? | | ??????????? ??? #?? ?????????????????????? | | ?????????? ##???? #??????#??????????????????? | | ??????????? ??????##????????#?????????????#???? | | ?????????????????????????????????????????????????? | | ?????????????????????????????????????????????????? | | ?????????????????????????????????????????????????? | | ?????????????????????????????????????????????????? | | ?????????????????????????????????????????????????? | +----------------------------------------------------+ Best States ------------- Heat Dissipation 25 Energy Generation 10 Energy Capacity 350 Matter Stores 300 Matter Capacity 300 Sight Range 21 Terrain Scan Range 16 Terrain Scan Density 10 Armor Coverage 150 Evasion (%) 40 Recoil Reduction 2 Item Schematics ----------------- Hcp. Storage Unit | -10/Materials | Hacked Robot Schematics ------------------ None Fabricated ------------ Nothing Repaired ---------- Nothing Studied --------- None Alien Tech Used ----------------- None Achievements -------------- None Challenges ------------ None Game ------ Seed DeflectorHeartShield Manual? 0 Play Time 00:20:27 Cumulative 337.8 hours Start 2026.03.16 @ 22:01:04 End 2026.03.16 @ 22:18:31 Sessions 1 Manual Loads 0 Difficulty Rogue Special Mode None Game No. 119 Rogue 118 Adventurer 1 Explorer 0 Win Type - Total 12 Types 10/0/2/0/0/0/0/0/0/0 Lore% 77 Gallery% 71 Achievement% 50 Wizard Run 0 Options --------- Layout 0 ASCII 1 Keyboard 1 Movement Vi Keybinds 0 Fullscreen 1 Font 36/Terminus++ Map View 76x50 Zoom Use 0% Tactical HUD 1 Map Filters NONE Filters NONE Steam 0 RUN: 21c0f205-1381-4729-8d55-ad761a3cd702